[Event "*** SCC Grand Prix: Titled Tuesday Blitz"]
[Site "Chess.com"]
[Date "2020.10.06"]
[Round "5"]
[White "sergeikim"]
[Black "GM_Levan_Pantsulaia"]
[Result "0-1"]
[WhiteElo "2526"]
[BlackElo "2789"]
[TimeControl "180+1"]
[EndTime "10:55:03 PDT"]
[Termination "GM_Levan_Pantsulaia won by resignation"]

1. d4 {[%clk 0:03:00.9]} 1... Nf6 {[%clk 0:02:56.3]} 2. c4 {[%clk 0:03:00.9]}
2... c5 {[%clk 0:02:56.4]} 3. d5 {[%clk 0:03:00.5]} 3... e6 {[%clk 0:02:56.8]}
4. Nc3 {[%clk 0:02:59.5]} 4... exd5 {[%clk 0:02:57.7]} 5. cxd5 {[%clk
0:03:00.4]} 5... d6 {[%clk 0:02:58.4]} 6. e4 {[%clk 0:03:01]} 6... g6 {[%clk
0:02:59]} 7. Nge2 {[%clk 0:03:01.6]} 7... Bg7 {[%clk 0:02:57.9]} 8. Ng3 {[%clk
0:03:01.9]} 8... h5 {[%clk 0:02:57]} 9. Be2 {[%clk 0:02:55.7]} 9... O-O {[%clk
0:02:50.8]} 10. Bg5 {[%clk 0:02:54.2]} 10... Na6 {[%clk 0:02:45.3]} 11. O-O
{[%clk 0:02:51.8]} 11... Nc7 {[%clk 0:02:45.7]} 12. Qd2 {[%clk 0:02:50]} 12...
Qe8 {[%clk 0:02:45.3]} 13. a4 {[%clk 0:02:46.6]} 13... Nh7 {[%clk 0:02:44.5]}
14. Bh4 {[%clk 0:02:46.4]} 14... Qe5 {[%clk 0:02:40]} 15. f4 {[%clk 0:02:42.4]}
15... Qd4+ {[%clk 0:02:38.2]} 16. Qxd4 {[%clk 0:02:42.8]} 16... Bxd4+ {[%clk
0:02:39.1]} 17. Kh1 {[%clk 0:02:40.9]} 17... Re8 {[%clk 0:02:40]} 18. Bd3 {[%clk
0:02:25]} 18... Bd7 {[%clk 0:02:37.7]} 19. Nge2 {[%clk 0:02:23.4]} 19... Bg7
{[%clk 0:02:34.5]} 20. a5 {[%clk 0:02:16.3]} 20... b5 {[%clk 0:02:27.7]} 21.
axb6 {[%clk 0:02:12]} 21... axb6 {[%clk 0:02:28.6]} 22. Bg3 {[%clk 0:02:08.9]}
22... f5 {[%clk 0:02:01.1]} 23. exf5 {[%clk 0:02:01.1]} 23... Bxf5 {[%clk
0:01:58.5]} 24. Bxf5 {[%clk 0:01:59]} 24... gxf5 {[%clk 0:01:59.4]} 25. Bh4
{[%clk 0:01:54]} 25... Kf7 {[%clk 0:01:53.7]} 26. h3 {[%clk 0:01:46.9]} 26... b5
{[%clk 0:01:51]} 27. Rxa8 {[%clk 0:01:39.1]} 27... Rxa8 {[%clk 0:01:51.9]} 28.
Ng3 {[%clk 0:01:36.2]} 28... Kg6 {[%clk 0:01:49.2]} 29. Re1 {[%clk 0:01:35.3]}
29... b4 {[%clk 0:01:45.2]} 30. Nd1 {[%clk 0:01:29.6]} 30... Ra1 {[%clk
0:01:44.3]} 31. b3 {[%clk 0:01:29.6]} 31... Nxd5 {[%clk 0:01:41.7]} 32. Re6+
{[%clk 0:01:20.6]} 32... Bf6 {[%clk 0:01:40.9]} 33. Bxf6 {[%clk 0:01:13.8]}
33... Rxd1+ {[%clk 0:01:39.2]} 34. Kh2 {[%clk 0:01:14.7]} 34... Nhxf6 {[%clk
0:01:39.4]} 35. Rxd6 {[%clk 0:01:14.4]} 35... Rd3 {[%clk 0:01:27.1]} 36. Rc6
{[%clk 0:01:13.1]} 36... Rxb3 {[%clk 0:01:24.6]} 37. Rxc5 {[%clk 0:01:12.3]}
37... Rxg3 {[%clk 0:01:24.3]} 0-1

[Event "*** SCC Grand Prix: Titled Tuesday Blitz"]
[Site "Chess.com"]
[Date "2020.10.06"]
[Round "5"]
[White "DanielDardha2005"]
[Black "Konavets"]
[Result "0-1"]
[WhiteElo "2677"]
[BlackElo "2998"]
[TimeControl "180+1"]
[EndTime "10:55:10 PDT"]
[Termination "Konavets won by resignation"]

1. d4 {[%clk 0:03:00.9]} 1... Nf6 {[%clk 0:02:59.9]} 2. c4 {[%clk 0:03:00.7]}
2... e5 {[%clk 0:02:59.8]} 3. dxe5 {[%clk 0:03:00]} 3... Ng4 {[%clk 0:03:00.1]}
4. e3 {[%clk 0:02:59.2]} 4... Nxe5 {[%clk 0:02:59.1]} 5. Nh3 {[%clk 0:02:59.5]}
5... g6 {[%clk 0:02:58.3]} 6. Nf4 {[%clk 0:02:58.6]} 6... Bg7 {[%clk 0:02:58.9]}
7. Nc3 {[%clk 0:02:58.5]} 7... O-O {[%clk 0:02:59.3]} 8. Be2 {[%clk 0:02:58.8]}
8... d6 {[%clk 0:02:58.8]} 9. O-O {[%clk 0:02:58.7]} 9... Re8 {[%clk 0:02:58.6]}
10. Nfd5 {[%clk 0:02:58]} 10... a5 {[%clk 0:02:57.6]} 11. Qc2 {[%clk 0:02:50.5]}
11... Na6 {[%clk 0:02:57.1]} 12. a3 {[%clk 0:02:44.3]} 12... Nc5 {[%clk
0:02:55.8]} 13. e4 {[%clk 0:02:26.6]} 13... Nc6 {[%clk 0:02:54.7]} 14. Nb5
{[%clk 0:02:11.1]} 14... Ne6 {[%clk 0:02:48.8]} 15. Bd3 {[%clk 0:02:02.8]} 15...
Ncd4 {[%clk 0:02:47.8]} 16. Nxd4 {[%clk 0:02:02.7]} 16... Nxd4 {[%clk
0:02:48.7]} 17. Qd1 {[%clk 0:02:02.8]} 17... c6 {[%clk 0:02:49.2]} 18. Nc3
{[%clk 0:02:01.2]} 18... Qh4 {[%clk 0:02:47.6]} 19. Be3 {[%clk 0:01:55.2]} 19...
Bg4 {[%clk 0:02:42.5]} 20. Be2 {[%clk 0:00:37.6]} 20... Nxe2+ {[%clk 0:02:36.5]}
21. Nxe2 {[%clk 0:00:38.5]} 21... Bxe2 {[%clk 0:02:27.3]} 22. Qxe2 {[%clk
0:00:37.9]} 22... Qxe4 {[%clk 0:02:28.2]} 23. Rad1 {[%clk 0:00:37]} 23... d5
{[%clk 0:02:28.5]} 24. cxd5 {[%clk 0:00:36.2]} 24... cxd5 {[%clk 0:02:29.4]} 25.
Qd2 {[%clk 0:00:30.5]} 25... d4 {[%clk 0:02:29.8]} 26. Bh6 {[%clk 0:00:15.2]}
26... Bxh6 {[%clk 0:02:21.6]} 27. Qxh6 {[%clk 0:00:16.1]} 27... Rac8 {[%clk
0:02:21.5]} 28. h4 {[%clk 0:00:14.3]} 28... Rc2 {[%clk 0:02:20.1]} 29. Rfe1
{[%clk 0:00:13.3]} 29... Qxe1+ {[%clk 0:02:19.6]} 30. Rxe1 {[%clk 0:00:14.2]}
30... Rxe1+ {[%clk 0:02:20.1]} 31. Kh2 {[%clk 0:00:15.1]} 31... Rxf2 {[%clk
0:02:20.8]} 32. Qg5 {[%clk 0:00:14.1]} 32... Re8 {[%clk 0:02:16.5]} 33. Qxa5
{[%clk 0:00:11]} 33... Rf5 {[%clk 0:02:12.2]} 34. Qa4 {[%clk 0:00:10.4]} 34...
Rd8 {[%clk 0:02:11.4]} 35. g4 {[%clk 0:00:08.9]} 35... Rfd5 {[%clk 0:02:10.2]}
36. Qd1 {[%clk 0:00:07.8]} 36... d3 {[%clk 0:02:10.7]} 37. Qd2 {[%clk
0:00:08.7]} 37... Re5 {[%clk 0:02:11.2]} 38. Qc3 {[%clk 0:00:07.6]} 38... d2
{[%clk 0:02:11.1]} 39. Qxe5 {[%clk 0:00:07]} 39... d1=Q {[%clk 0:02:10.2]} 40.
h5 {[%clk 0:00:07.9]} 40... Qd6 {[%clk 0:02:10.5]} 41. h6 {[%clk 0:00:07.2]}
41... Qxe5+ {[%clk 0:02:10.5]} 0-1

[Event "*** SCC Grand Prix: Titled Tuesday Blitz"]
[Site "Chess.com"]
[Date "2020.10.06"]
[Round "5"]
[White "Swarnapuri"]
[Black "MiroVlasenko"]
[Result "0-1"]
[WhiteElo "2609"]
[BlackElo "2799"]
[TimeControl "180+1"]
[EndTime "10:55:10 PDT"]
[Termination "MiroVlasenko won by resignation"]

1. d4 {[%clk 0:03:00.9]} 1... Nc6 {[%clk 0:03:00.8]} 2. Bf4 {[%clk 0:03:00.8]}
2... d6 {[%clk 0:03:00.6]} 3. Nf3 {[%clk 0:03:00.6]} 3... Bg4 {[%clk 0:03:00.4]}
4. Nbd2 {[%clk 0:03:00]} 4... g6 {[%clk 0:02:59.3]} 5. h3 {[%clk 0:02:59.6]}
5... Bxf3 {[%clk 0:02:59.4]} 6. Nxf3 {[%clk 0:02:59.5]} 6... Bg7 {[%clk
0:02:59.9]} 7. e3 {[%clk 0:02:59.5]} 7... e5 {[%clk 0:02:59.8]} 8. Bh2 {[%clk
0:02:59.2]} 8... e4 {[%clk 0:02:58.6]} 9. Nd2 {[%clk 0:02:59.2]} 9... f5 {[%clk
0:02:58.6]} 10. c4 {[%clk 0:02:55]} 10... Nf6 {[%clk 0:02:58.2]} 11. Be2 {[%clk
0:02:54]} 11... O-O {[%clk 0:02:55.4]} 12. Qb3 {[%clk 0:02:51.6]} 12... Rb8
{[%clk 0:02:53.4]} 13. O-O {[%clk 0:02:37.5]} 13... Kh8 {[%clk 0:02:52]} 14.
Rac1 {[%clk 0:02:29.8]} 14... Qe7 {[%clk 0:02:47.4]} 15. Qa3 {[%clk 0:02:24.6]}
15... g5 {[%clk 0:02:41]} 16. d5 {[%clk 0:02:20.5]} 16... Ne5 {[%clk 0:02:40.8]}
17. c5 {[%clk 0:02:21.1]} 17... g4 {[%clk 0:02:30.4]} 18. cxd6 {[%clk
0:02:20.2]} 18... cxd6 {[%clk 0:02:30.9]} 19. Nc4 {[%clk 0:02:00.8]} 19... Nxc4
{[%clk 0:02:28.7]} 20. Rxc4 {[%clk 0:02:01.7]} 20... Rbd8 {[%clk 0:02:24.3]} 21.
hxg4 {[%clk 0:01:50.6]} 21... fxg4 {[%clk 0:02:20.5]} 22. Rfc1 {[%clk
0:01:28.2]} 22... Nxd5 {[%clk 0:02:19.6]} 23. Bxg4 {[%clk 0:01:28.1]} 23... Qh4
{[%clk 0:02:18.7]} 24. Rxe4 {[%clk 0:01:13.1]} 24... Qxf2+ {[%clk 0:02:11.5]}
25. Kh1 {[%clk 0:01:13.4]} 25... Bxb2 {[%clk 0:01:54.7]} 26. Qb3 {[%clk
0:01:13.9]} 26... Bxc1 {[%clk 0:01:49.9]} 27. Qxd5 {[%clk 0:01:14.2]} 27... Bb2
{[%clk 0:01:49.1]} 28. Bf4 {[%clk 0:01:04.6]} 28... Bg7 {[%clk 0:01:43.6]} 29.
Qh5 {[%clk 0:01:02.2]} 29... d5 {[%clk 0:01:36.1]} 30. Re7 {[%clk 0:00:57.6]}
30... Rxf4 {[%clk 0:01:35.3]} 31. Kh2 {[%clk 0:00:58]} 31... Rff8 {[%clk
0:01:30.9]} 32. Rxb7 {[%clk 0:00:40.8]} 32... Qxe3 {[%clk 0:01:27.5]} 0-1

[Event "*** SCC Grand Prix: Titled Tuesday Blitz"]
[Site "Chess.com"]
[Date "2020.10.06"]
[Round "5"]
[White "tlomigtlis"]
[Black "Zemerovv"]
[Result "1-0"]
[WhiteElo "2492"]
[BlackElo "2277"]
[TimeControl "180+1"]
[EndTime "10:55:11 PDT"]
[Termination "tlomigtlis won by resignation"]

1. d4 {[%clk 0:02:59.3]} 1... g6 {[%clk 0:03:00.9]} 2. c4 {[%clk 0:02:58.7]}
2... Bg7 {[%clk 0:03:01.8]} 3. g3 {[%clk 0:02:58.7]} 3... d6 {[%clk 0:03:01.8]}
4. Bg2 {[%clk 0:02:58.2]} 4... Nc6 {[%clk 0:03:01.5]} 5. Nf3 {[%clk 0:02:57.7]}
5... Bg4 {[%clk 0:02:59]} 6. O-O {[%clk 0:02:54]} 6... Bxf3 {[%clk 0:02:58.1]}
7. Bxf3 {[%clk 0:02:54.9]} 7... Nxd4 {[%clk 0:02:56.9]} 8. Bxb7 {[%clk
0:02:55.8]} 8... Rb8 {[%clk 0:02:56.5]} 9. Bg2 {[%clk 0:02:56]} 9... c5 {[%clk
0:02:56]} 10. e3 {[%clk 0:02:50.6]} 10... Ne6 {[%clk 0:02:55]} 11. Nc3 {[%clk
0:02:49.1]} 11... Nf6 {[%clk 0:02:54.6]} 12. Qa4+ {[%clk 0:02:48.1]} 12... Kf8
{[%clk 0:02:52.9]} 13. e4 {[%clk 0:02:40.9]} 13... Nd4 {[%clk 0:02:49.9]} 14. b3
{[%clk 0:02:38.7]} 14... h5 {[%clk 0:02:47.7]} 15. h3 {[%clk 0:02:36.7]} 15...
h4 {[%clk 0:02:46.2]} 16. g4 {[%clk 0:02:36.3]} 16... Nd7 {[%clk 0:02:44.4]} 17.
Be3 {[%clk 0:02:33.7]} 17... f5 {[%clk 0:02:43.7]} 18. exf5 {[%clk 0:02:32.6]}
18... gxf5 {[%clk 0:02:43.6]} 19. gxf5 {[%clk 0:02:18.6]} 19... Bf6 {[%clk
0:02:43.2]} 20. Rad1 {[%clk 0:02:14.4]} 20... Rg8 {[%clk 0:02:41.6]} 21. Kh1
{[%clk 0:02:13.6]} 21... Ne5 {[%clk 0:02:35.1]} 22. Nd5 {[%clk 0:02:10.3]} 22...
Nxf5 {[%clk 0:02:25.6]} 23. Nxf6 {[%clk 0:02:03.6]} 23... exf6 {[%clk
0:02:25.2]} 24. Bxc5 {[%clk 0:02:00.9]} 24... Qc7 {[%clk 0:02:15.4]} 25. Qxa7
{[%clk 0:01:57.5]} 25... Qxa7 {[%clk 0:01:54.5]} 26. Bxa7 {[%clk 0:01:58.4]}
26... Rd8 {[%clk 0:01:49.3]} 27. Bb6 {[%clk 0:01:56.9]} 27... Rd7 {[%clk
0:01:49.1]} 28. Bd5 {[%clk 0:01:54.7]} 28... Rg5 {[%clk 0:01:46.1]} 29. f4
{[%clk 0:01:44.9]} 29... Rg3 {[%clk 0:01:42.8]} 30. fxe5 {[%clk 0:01:43.9]}
30... Rxh3+ {[%clk 0:01:42.3]} 31. Kg2 {[%clk 0:01:43.6]} 31... Rg3+ {[%clk
0:01:42.3]} 32. Kh2 {[%clk 0:01:43.6]} 32... Rg5 {[%clk 0:01:27]} 33. Be6 {[%clk
0:01:40.1]} 33... Rb7 {[%clk 0:01:26.4]} 34. Bd8 {[%clk 0:01:36.5]} 34... Ng3
{[%clk 0:01:19.6]} 35. Bxf6 {[%clk 0:01:32.9]} 35... Nxf1+ {[%clk 0:01:17.9]}
36. Rxf1 {[%clk 0:01:33.8]} 36... Rg6 {[%clk 0:01:14.6]} 37. exd6 {[%clk
0:01:32.2]} 37... Rxf6 {[%clk 0:00:57.6]} 38. Rxf6+ {[%clk 0:01:33.1]} 38... Ke8
{[%clk 0:00:57.6]} 39. d7+ {[%clk 0:01:31.7]} 39... Ke7 {[%clk 0:00:57.6]} 40.
Rf7+ {[%clk 0:01:31.8]} 40... Kxe6 {[%clk 0:00:55.4]} 41. d8=N+ {[%clk
0:01:31.1]} 1-0

[Event "*** SCC Grand Prix: Titled Tuesday Blitz"]
[Site "Chess.com"]
[Date "2020.10.06"]
[Round "5"]
[White "markberk"]
[Black "chorejason"]
[Result "1-0"]
[WhiteElo "2398"]
[BlackElo "2158"]
[TimeControl "180+1"]
[EndTime "10:55:14 PDT"]
[Termination "markberk won by resignation"]

1. Nf3 {[%clk 0:03:00.9]} 1... c5 {[%clk 0:02:59.6]} 2. c4 {[%clk 0:02:59.4]}
2... Nf6 {[%clk 0:02:59.6]} 3. Nc3 {[%clk 0:02:59.2]} 3... g6 {[%clk 0:02:59.9]}
4. e3 {[%clk 0:02:56]} 4... Bg7 {[%clk 0:02:59.5]} 5. d4 {[%clk 0:02:55.3]} 5...
cxd4 {[%clk 0:02:48.2]} 6. exd4 {[%clk 0:02:54.7]} 6... O-O {[%clk 0:02:48.9]}
7. d5 {[%clk 0:02:44.9]} 7... d6 {[%clk 0:02:47.1]} 8. Be2 {[%clk 0:02:41.7]}
8... e6 {[%clk 0:02:47.4]} 9. dxe6 {[%clk 0:02:37.9]} 9... Bxe6 {[%clk
0:02:45.7]} 10. Nd4 {[%clk 0:02:29.8]} 10... d5 {[%clk 0:01:48.2]} 11. O-O
{[%clk 0:02:28.3]} 11... Nc6 {[%clk 0:01:43.6]} 12. Nxe6 {[%clk 0:02:26]} 12...
fxe6 {[%clk 0:01:44.5]} 13. Bg5 {[%clk 0:02:15.2]} 13... h6 {[%clk 0:01:41.5]}
14. Bxf6 {[%clk 0:02:13]} 14... Qxf6 {[%clk 0:01:34.7]} 15. cxd5 {[%clk
0:02:12.9]} 15... Rad8 {[%clk 0:01:35]} 16. d6 {[%clk 0:01:43.1]} 16... Nd4
{[%clk 0:01:28.5]} 17. Bc4 {[%clk 0:01:39.2]} 17... Rxd6 {[%clk 0:01:26.6]} 18.
Ne4 {[%clk 0:01:38.5]} 18... Qe7 {[%clk 0:01:20.1]} 19. Nxd6 {[%clk 0:01:38.2]}
19... Qxd6 {[%clk 0:01:21]} 20. Qg4 {[%clk 0:01:37.1]} 20... Kh7 {[%clk
0:01:03.1]} 21. Rad1 {[%clk 0:01:32.9]} 21... Qc5 {[%clk 0:01:01.2]} 22. Bd3
{[%clk 0:01:30.1]} 22... Nf5 {[%clk 0:00:58.7]} 23. b3 {[%clk 0:01:24.4]} 23...
h5 {[%clk 0:00:50.8]} 24. Qc4 {[%clk 0:01:23.6]} 24... Qe7 {[%clk 0:00:46.5]}
25. Rde1 {[%clk 0:01:20.4]} 25... Nd4 {[%clk 0:00:43.8]} 26. Re4 {[%clk
0:01:14.1]} 26... e5 {[%clk 0:00:41.5]} 27. Qxd4 {[%clk 0:01:12.4]} 1-0

[Event "*** SCC Grand Prix: Titled Tuesday Blitz"]
[Site "Chess.com"]
[Date "2020.10.06"]
[Round "5"]
[White "TomasKapitanchuk"]
[Black "FloMasterAAK"]
[Result "0-1"]
[WhiteElo "2391"]
[BlackElo "2555"]
[TimeControl "180+1"]
[EndTime "10:55:22 PDT"]
[Termination "FloMasterAAK won by resignation"]

1. e4 {[%clk 0:03:00.9]} 1... e5 {[%clk 0:02:59.3]} 2. Nf3 {[%clk 0:03:01.2]}
2... Nc6 {[%clk 0:02:59.2]} 3. Bc4 {[%clk 0:03:01.8]} 3... Nf6 {[%clk
0:02:58.8]} 4. d3 {[%clk 0:03:01.9]} 4... Be7 {[%clk 0:02:56.9]} 5. O-O {[%clk
0:03:02.2]} 5... O-O {[%clk 0:02:57]} 6. Re1 {[%clk 0:03:02.7]} 6... Re8 {[%clk
0:02:53.2]} 7. Nc3 {[%clk 0:02:52.5]} 7... d6 {[%clk 0:02:50.2]} 8. Ng5 {[%clk
0:02:45.6]} 8... Rf8 {[%clk 0:02:49.6]} 9. h3 {[%clk 0:02:40]} 9... Nd4 {[%clk
0:02:43.8]} 10. a4 {[%clk 0:02:34.8]} 10... h6 {[%clk 0:02:42.7]} 11. Nf3 {[%clk
0:02:35.2]} 11... Nxf3+ {[%clk 0:02:29.4]} 12. Qxf3 {[%clk 0:02:36.1]} 12... Kh8
{[%clk 0:02:24.9]} 13. Be3 {[%clk 0:02:30.2]} 13... c6 {[%clk 0:02:22.7]} 14. d4
{[%clk 0:02:28.7]} 14... Be6 {[%clk 0:02:10.9]} 15. Bxe6 {[%clk 0:02:25.4]}
15... exd4 {[%clk 0:02:10.6]} 16. Bxd4 {[%clk 0:02:19.2]} 16... fxe6 {[%clk
0:02:10.9]} 17. Qg3 {[%clk 0:02:05.9]} 17... e5 {[%clk 0:02:10.8]} 18. Be3
{[%clk 0:02:06.2]} 18... Qe8 {[%clk 0:02:09.6]} 19. Rad1 {[%clk 0:02:03.3]}
19... Nh5 {[%clk 0:02:06.2]} 20. Qg4 {[%clk 0:02:02.5]} 20... Nf4 {[%clk
0:02:06.2]} 21. Kh2 {[%clk 0:01:51.4]} 21... Rf6 {[%clk 0:02:03.2]} 22. g3
{[%clk 0:01:48.9]} 22... Ne6 {[%clk 0:02:01.8]} 23. h4 {[%clk 0:01:44]} 23...
Qf7 {[%clk 0:02:00.3]} 24. Kg2 {[%clk 0:01:39.9]} 24... Rf8 {[%clk 0:01:56.9]}
25. Rd2 {[%clk 0:01:37.3]} 25... Nf4+ {[%clk 0:01:54.6]} 26. Kg1 {[%clk
0:01:32.6]} 26... Rg6 {[%clk 0:01:53.9]} 27. Qf5 {[%clk 0:01:21.1]} 27... Qe8
{[%clk 0:01:49.6]} 28. Bxf4 {[%clk 0:01:12]} 28... Rxf5 {[%clk 0:01:41.6]} 29.
exf5 {[%clk 0:01:12.9]} 29... Rg4 {[%clk 0:01:39.9]} 30. Be3 {[%clk 0:01:09.9]}
30... Qh5 {[%clk 0:01:38.1]} 31. f6 {[%clk 0:01:07.2]} 31... gxf6 {[%clk
0:01:36.5]} 32. Kf1 {[%clk 0:01:04.6]} 32... f5 {[%clk 0:01:35.4]} 33. Bxa7
{[%clk 0:01:03.1]} 33... Rg6 {[%clk 0:01:29.1]} 34. Be3 {[%clk 0:00:41.9]} 34...
Qf3 {[%clk 0:01:25.2]} 0-1

[Event "*** SCC Grand Prix: Titled Tuesday Blitz"]
[Site "Chess.com"]
[Date "2020.10.06"]
[Round "5"]
[White "BJthechessgod"]
[Black "bratkoo"]
[Result "0-1"]
[WhiteElo "2295"]
[BlackElo "2552"]
[TimeControl "180+1"]
[EndTime "10:55:26 PDT"]
[Termination "bratkoo won by checkmate"]

1. e4 {[%clk 0:03:00.9]} 1... a6 {[%clk 0:02:58.2]} 2. d4 {[%clk 0:02:52.5]}
2... b5 {[%clk 0:02:55.6]} 3. Nf3 {[%clk 0:02:51]} 3... Bb7 {[%clk 0:02:56]} 4.
Nbd2 {[%clk 0:02:49]} 4... g6 {[%clk 0:02:55.4]} 5. c3 {[%clk 0:02:48.1]} 5...
Bg7 {[%clk 0:02:56]} 6. Bd3 {[%clk 0:02:45.9]} 6... d6 {[%clk 0:02:56.6]} 7. O-O
{[%clk 0:02:44.6]} 7... Nd7 {[%clk 0:02:57.2]} 8. Re1 {[%clk 0:02:28.9]} 8... c5
{[%clk 0:02:54.6]} 9. e5 {[%clk 0:02:27.5]} 9... dxe5 {[%clk 0:02:51]} 10. dxe5
{[%clk 0:02:24.7]} 10... Nxe5 {[%clk 0:02:40]} 11. Nxe5 {[%clk 0:02:16.7]} 11...
Bxe5 {[%clk 0:02:40.5]} 12. Bxb5+ {[%clk 0:02:05.4]} 12... axb5 {[%clk
0:02:37.8]} 13. Rxe5 {[%clk 0:02:06]} 13... Nf6 {[%clk 0:02:36.9]} 14. Qe2
{[%clk 0:02:04.1]} 14... O-O {[%clk 0:02:36.6]} 15. Qxb5 {[%clk 0:01:53.3]}
15... Ba6 {[%clk 0:02:28.3]} 16. Qb3 {[%clk 0:01:48.4]} 16... Qd3 {[%clk
0:02:24.2]} 17. Re3 {[%clk 0:01:44.8]} 17... Qd6 {[%clk 0:02:19]} 18. h3 {[%clk
0:01:30.6]} 18... Nd5 {[%clk 0:02:17.4]} 19. Re1 {[%clk 0:01:24.4]} 19... Rfb8
{[%clk 0:02:10.3]} 20. Qd1 {[%clk 0:01:20.8]} 20... Nf4 {[%clk 0:02:09.7]} 21.
Ne4 {[%clk 0:01:12.2]} 21... Qc7 {[%clk 0:01:53.2]} 22. Bxf4 {[%clk 0:01:04]}
22... Qxf4 {[%clk 0:01:54.1]} 23. Nxc5 {[%clk 0:01:02.8]} 23... Rd8 {[%clk
0:01:44.8]} 24. Qg4 {[%clk 0:00:52.4]} 24... Qf6 {[%clk 0:01:39.1]} 25. Nxa6
{[%clk 0:00:46.3]} 25... Rxa6 {[%clk 0:01:40]} 26. a4 {[%clk 0:00:42.7]} 26...
Rd2 {[%clk 0:01:39.9]} 27. Re2 {[%clk 0:00:38.2]} 27... Rad6 {[%clk 0:01:36.2]}
28. a5 {[%clk 0:00:31.6]} 28... h5 {[%clk 0:01:35.9]} 29. Qc4 {[%clk 0:00:29.2]}
29... Rd1+ {[%clk 0:01:20.9]} 30. Rxd1 {[%clk 0:00:27.2]} 30... Rxd1+ {[%clk
0:01:21.8]} 31. Kh2 {[%clk 0:00:27.7]} 31... Qd6+ {[%clk 0:01:22.5]} 32. g3
{[%clk 0:00:27.1]} 32... Ra1 {[%clk 0:01:23.1]} 33. b4 {[%clk 0:00:26.4]} 33...
Qd1 {[%clk 0:01:22.5]} 34. g4 {[%clk 0:00:19.3]} 34... Qg1# {[%clk 0:01:22]} 0-1

[Event "*** SCC Grand Prix: Titled Tuesday Blitz"]
[Site "Chess.com"]
[Date "2020.10.06"]
[Round "5"]
[White "Meri-Arabidze"]
[Black "gui_borba"]
[Result "1-0"]
[WhiteElo "2713"]
[BlackElo "2496"]
[TimeControl "180+1"]
[EndTime "10:55:28 PDT"]
[Termination "Meri-Arabidze won by resignation"]

1. d4 {[%clk 0:03:00.9]} 1... Nf6 {[%clk 0:02:59.5]} 2. c4 {[%clk 0:02:59.9]}
2... e6 {[%clk 0:02:59.9]} 3. Nf3 {[%clk 0:02:59.7]} 3... d5 {[%clk 0:02:59]} 4.
Nc3 {[%clk 0:02:59.7]} 4... a6 {[%clk 0:02:58.8]} 5. cxd5 {[%clk 0:02:59]} 5...
exd5 {[%clk 0:02:59.7]} 6. Bg5 {[%clk 0:02:58.4]} 6... Be6 {[%clk 0:02:59.8]} 7.
e3 {[%clk 0:02:58.3]} 7... Nbd7 {[%clk 0:02:57.9]} 8. Bd3 {[%clk 0:02:57.7]}
8... h6 {[%clk 0:02:57.1]} 9. Bh4 {[%clk 0:02:55.3]} 9... Bd6 {[%clk 0:02:55.9]}
10. O-O {[%clk 0:02:50.3]} 10... c6 {[%clk 0:02:56.3]} 11. Rb1 {[%clk
0:02:48.3]} 11... a5 {[%clk 0:02:53.7]} 12. a3 {[%clk 0:02:47.7]} 12... O-O
{[%clk 0:02:43.2]} 13. b4 {[%clk 0:02:47.2]} 13... axb4 {[%clk 0:02:38.9]} 14.
axb4 {[%clk 0:02:48.1]} 14... Ra3 {[%clk 0:02:39.5]} 15. Qc2 {[%clk 0:02:40.6]}
15... Qc7 {[%clk 0:02:22.8]} 16. Rfc1 {[%clk 0:02:33.8]} 16... Rc8 {[%clk
0:02:01.1]} 17. Qb2 {[%clk 0:02:28.6]} 17... Raa8 {[%clk 0:01:45.7]} 18. Nb5
{[%clk 0:02:28.3]} 18... Qb8 {[%clk 0:01:45.1]} 19. Nxd6 {[%clk 0:02:28.4]}
19... Qxd6 {[%clk 0:01:46]} 20. Bg3 {[%clk 0:02:26.8]} 20... Qe7 {[%clk
0:01:44.7]} 21. b5 {[%clk 0:02:26.8]} 21... c5 {[%clk 0:01:37.4]} 22. dxc5
{[%clk 0:02:27.4]} 22... Nxc5 {[%clk 0:01:36.7]} 23. Bf1 {[%clk 0:02:24.9]}
23... Bf5 {[%clk 0:01:17.9]} 24. Ra1 {[%clk 0:02:22.8]} 24... Rxa1 {[%clk
0:01:15.5]} 25. Rxa1 {[%clk 0:02:21.5]} 25... Nfe4 {[%clk 0:01:05.7]} 26. Be5
{[%clk 0:02:17.4]} 26... Bg4 {[%clk 0:00:55]} 27. Bxg7 {[%clk 0:01:49.9]} 27...
Bxf3 {[%clk 0:00:53.5]} 28. Bxh6 {[%clk 0:01:49.5]} 28... f6 {[%clk 0:00:18.5]}
29. gxf3 {[%clk 0:01:48]} 29... Kh7 {[%clk 0:00:18.6]} 30. Bf4 {[%clk
0:01:41.2]} 30... Rg8+ {[%clk 0:00:18.6]} 31. Bg3 {[%clk 0:01:41.2]} 31... Nxg3
{[%clk 0:00:09.2]} 32. hxg3 {[%clk 0:01:41.1]} 32... Qe6 {[%clk 0:00:10.1]} 33.
Qc2+ {[%clk 0:01:39.1]} 33... Kg7 {[%clk 0:00:09.7]} 34. Qxc5 {[%clk 0:01:39]}
1-0

[Event "*** SCC Grand Prix: Titled Tuesday Blitz"]
[Site "Chess.com"]
[Date "2020.10.06"]
[Round "5"]
[White "LubovMarkelova"]
[Black "BanjoKazooieN64"]
[Result "0-1"]
[WhiteElo "2230"]
[BlackElo "2481"]
[TimeControl "180+1"]
[EndTime "10:55:39 PDT"]
[Termination "BanjoKazooieN64 won by checkmate"]

1. Nf3 {[%clk 0:03:00.9]} 1... d5 {[%clk 0:02:58.4]} 2. d4 {[%clk 0:03:00.6]}
2... Bf5 {[%clk 0:02:57.3]} 3. c4 {[%clk 0:03:00.2]} 3... e6 {[%clk 0:02:57.7]}
4. Nc3 {[%clk 0:03:00.1]} 4... c6 {[%clk 0:02:58]} 5. Bf4 {[%clk 0:02:59.9]}
5... Nf6 {[%clk 0:02:57.7]} 6. Qb3 {[%clk 0:02:59.7]} 6... Qb6 {[%clk
0:02:57.9]} 7. c5 {[%clk 0:02:59.6]} 7... Qxb3 {[%clk 0:02:57.2]} 8. axb3 {[%clk
0:03:00.5]} 8... a6 {[%clk 0:02:54.8]} 9. b4 {[%clk 0:03:00.5]} 9... Ne4 {[%clk
0:02:52.2]} 10. e3 {[%clk 0:02:53.7]} 10... Nxc3 {[%clk 0:02:52.1]} 11. bxc3
{[%clk 0:02:53.5]} 11... Nd7 {[%clk 0:02:52.8]} 12. b5 {[%clk 0:02:50.6]} 12...
Be7 {[%clk 0:02:51.4]} 13. bxc6 {[%clk 0:02:49.8]} 13... bxc6 {[%clk 0:02:51.7]}
14. Rxa6 {[%clk 0:02:46.1]} 14... O-O {[%clk 0:02:50.7]} 15. Rxc6 {[%clk
0:01:30.3]} 15... Ra1+ {[%clk 0:02:48.3]} 16. Ke2 {[%clk 0:01:30.6]} 16... Ra2+
{[%clk 0:02:37.2]} 17. Ke1 {[%clk 0:01:23.3]} 17... Nf6 {[%clk 0:02:25.4]} 18.
Ne5 {[%clk 0:01:14.7]} 18... Rb8 {[%clk 0:02:17.8]} 19. Rb6 {[%clk 0:01:13.7]}
19... Rba8 {[%clk 0:02:13.9]} 20. Nc6 {[%clk 0:00:59.7]} 20... Ra1+ {[%clk
0:01:55.1]} 21. Ke2 {[%clk 0:00:59]} 21... Bg4+ {[%clk 0:01:54.1]} 22. Kd3
{[%clk 0:00:42.1]} 22... Bf8 {[%clk 0:01:45]} 23. f3 {[%clk 0:00:38.1]} 23...
Bf5+ {[%clk 0:01:43.1]} 24. e4 {[%clk 0:00:38.5]} 24... dxe4+ {[%clk 0:01:43]}
25. fxe4 {[%clk 0:00:38.7]} 25... Nxe4 {[%clk 0:01:38.4]} 26. Kc4 {[%clk
0:00:37]} 26... g5 {[%clk 0:01:29.6]} 27. Be3 {[%clk 0:00:26.7]} 27... Re1
{[%clk 0:01:28.8]} 28. Ne5 {[%clk 0:00:16]} 28... Rxe3 {[%clk 0:01:25.9]} 29. c6
{[%clk 0:00:14.8]} 29... Rxc3+ {[%clk 0:01:25.5]} 30. Kb5 {[%clk 0:00:14.7]}
30... Rb3+ {[%clk 0:01:15.6]} 31. Kc4 {[%clk 0:00:13.9]} 31... Nd2# {[%clk
0:01:15.1]} 0-1